[Event "Titled Tuesday Blitz January 03 Early 2023"]
[White "Mitrovic, Darko R"]
[Black "Legenia, Artem"]
[WhiteFideId "927023"]
[BlackFideId "14136945"]
[WhiteElo "2220"]
[BlackElo "2092"]
[Result "0-1"]
[Round "04"]
[TimeControl "180+2"]
[Date "2023.01.03"]
[WhiteClock "0:00:01"]
[BlackClock "0:00:07"]

1. d4 {[%clk 0:03:00]}  d5 {[%clk 0:02:58]} 2. Nf3 {[%clk 0:03:01]}  Nf6 {[%clk 0:02:58]} 3. g3 {[%clk 0:03:01]}  Bg4 {[%clk 0:02:58]} 4. Bg2 {[%clk 0:03:01]}  Bxf3 {[%clk 0:02:58]} 5. exf3 {[%clk 0:03:00]}  e6 {[%clk 0:02:59]} 6. O-O {[%clk 0:03:00]}  Nbd7 {[%clk 0:02:59]} 7. f4 {[%clk 0:03:00]}  c5 {[%clk 0:02:59]} 8. Be3 {[%clk 0:02:57]}  Be7 {[%clk 0:02:57]} 9. c3 {[%clk 0:02:38]}  Qb6 {[%clk 0:02:54]} 10. Qb3 {[%clk 0:02:33]}  O-O {[%clk 0:02:39]} 11. Nd2 {[%clk 0:02:31]}  c4 {[%clk 0:02:33]} 12. Qxb6 {[%clk 0:02:28]}  Nxb6 {[%clk 0:02:32]} 13. b3 {[%clk 0:01:57]}  Ba3 {[%clk 0:02:10]} 14. bxc4 {[%clk 0:01:43]}  dxc4 {[%clk 0:02:09]} 15. Rab1 {[%clk 0:01:41]}  Nfd5 {[%clk 0:02:02]} 16. Bxd5 {[%clk 0:01:17]}  exd5 {[%clk 0:01:56]} 17. f5 {[%clk 0:01:11]}  Na4 {[%clk 0:01:51]} 18. Rxb7 {[%clk 0:01:02]}  Nxc3 {[%clk 0:01:51]} 19. Kg2 {[%clk 0:00:41]}  Rfb8 {[%clk 0:01:48]} 20. Rd7 {[%clk 0:00:33]}  Rb2 {[%clk 0:01:35]} 21. Nf3 {[%clk 0:00:31]}  f6 {[%clk 0:01:26]} 22. g4 {[%clk 0:00:27]}  Ne4 {[%clk 0:01:15]} 23. Rxd5 {[%clk 0:00:24]}  Rxa2 {[%clk 0:01:15]} 24. g5 {[%clk 0:00:20]}  c3 {[%clk 0:01:14]} 25. Rb1 {[%clk 0:00:13]}  c2 {[%clk 0:01:10]} 26. Rb7 {[%clk 0:00:13]}  Bf8 {[%clk 0:00:58]} 27. Rc7 {[%clk 0:00:08]}  a5 {[%clk 0:00:49]} 28. g6 {[%clk 0:00:07]}  hxg6 {[%clk 0:00:48]} 29. fxg6 {[%clk 0:00:07]}  a4 {[%clk 0:00:48]} 30. Nh4 {[%clk 0:00:06]}  a3 {[%clk 0:00:46]} 31. Nf5 {[%clk 0:00:06]}  Rb2 {[%clk 0:00:41]} 32. Rdd7 {[%clk 0:00:05]}  a2 {[%clk 0:00:14]} 33. Ne7+ {[%clk 0:00:05]}  Kh8 {[%clk 0:00:11]} 34. Rd5 {[%clk 0:00:03]}  Bxe7 {[%clk 0:00:08]} 35. Rxe7 {[%clk 0:00:01]}  a1=Q {[%clk 0:00:07]} 0-1


[Site "https://www.chess.com"]

[Event "Titled Tuesday Blitz January 03 Early 2023"]
[White "Aung Thant Zin"]
[Black "Pein, Jonathan"]
[WhiteFideId "13000063"]
[BlackFideId "417092"]
[WhiteElo "2268"]
[BlackElo "2265"]
[Result "0-1"]
[Round "04"]
[TimeControl "180+2"]
[Date "2023.01.03"]
[WhiteClock "0:00:18"]
[BlackClock "0:00:49"]

1. e4 {[%clk 0:02:44]}  e5 {[%clk 0:02:58]} 2. Nf3 {[%clk 0:02:37]}  d6 {[%clk 0:02:58]} 3. d4 {[%clk 0:02:37]}  exd4 {[%clk 0:02:59]} 4. Nxd4 {[%clk 0:02:37]}  Nf6 {[%clk 0:02:59]} 5. Nc3 {[%clk 0:02:37]}  g6 {[%clk 0:03:00]} 6. g3 {[%clk 0:02:36]}  Bg7 {[%clk 0:03:00]} 7. Bg2 {[%clk 0:02:37]}  O-O {[%clk 0:03:01]} 8. O-O {[%clk 0:02:37]}  Nbd7 {[%clk 0:02:57]} 9. h3 {[%clk 0:02:35]}  Re8 {[%clk 0:02:57]} 10. Re1 {[%clk 0:02:34]}  Nc5 {[%clk 0:02:55]} 11. b4 {[%clk 0:02:22]}  Ne6 {[%clk 0:02:53]} 12. Nxe6 {[%clk 0:02:14]}  Bxe6 {[%clk 0:02:44]} 13. Bb2 {[%clk 0:02:13]}  Qd7 {[%clk 0:02:44]} 14. Kh2 {[%clk 0:02:12]}  Rad8 {[%clk 0:02:44]} 15. a4 {[%clk 0:02:07]}  h5 {[%clk 0:02:41]} 16. Rb1 {[%clk 0:01:52]}  Nh7 {[%clk 0:01:59]} 17. Qd2 {[%clk 0:01:27]}  Nf8 {[%clk 0:01:47]} 18. b5 {[%clk 0:01:13]}  Qc8 {[%clk 0:01:40]} 19. Ne2 {[%clk 0:01:08]}  Bxb2 {[%clk 0:01:38]} 20. Rxb2 {[%clk 0:01:08]}  Nd7 {[%clk 0:01:39]} 21. f4 {[%clk 0:01:03]}  Nb6 {[%clk 0:01:37]} 22. Qd4 {[%clk 0:00:53]}  d5 {[%clk 0:01:29]} 23. e5 {[%clk 0:00:52]}  c5 {[%clk 0:01:22]} 24. bxc6 {[%clk 0:00:52]}  bxc6 {[%clk 0:01:23]} 25. a5 {[%clk 0:00:44]}  c5 {[%clk 0:01:21]} 26. Qf2 {[%clk 0:00:40]}  Nc4 {[%clk 0:01:21]} 27. Rb5 {[%clk 0:00:39]}  d4 {[%clk 0:01:17]} 28. Nc1 {[%clk 0:00:35]}  Ne3 {[%clk 0:01:12]} 29. Nd3 {[%clk 0:00:29]}  c4 {[%clk 0:01:07]} 30. Nc5 {[%clk 0:00:25]}  Bd5 {[%clk 0:00:55]} 31. Bxd5 {[%clk 0:00:21]}  Rxd5 {[%clk 0:00:56]} 32. c3 {[%clk 0:00:19]}  Rxc5 {[%clk 0:00:56]} 33. Rxc5 {[%clk 0:00:19]}  Qxc5 {[%clk 0:00:57]} 34. cxd4 {[%clk 0:00:19]}  Qxd4 {[%clk 0:00:57]} 35. Qxe3 {[%clk 0:00:19]}  Rd8 {[%clk 0:00:49]} 36. Qxd4 {[%clk 0:00:19]}  Rxd4 {[%clk 0:00:50]} 37. Re2 {[%clk 0:00:19]}  c3 {[%clk 0:00:49]} 38. Kg2 {[%clk 0:00:19]}  Rd2 {[%clk 0:00:48]} 39. Kf2 {[%clk 0:00:19]}  c2 {[%clk 0:00:48]} 40. Rxd2 {[%clk 0:00:18]}  c1=Q {[%clk 0:00:49]} 0-1


[Site "https://www.chess.com"]

[Event "Titled Tuesday Blitz January 03 Early 2023"]
[White "Noshin, Anjum"]
[Black "Estrada Nieto, Julian"]
[WhiteFideId "10218564"]
[BlackFideId "5101018"]
[WhiteElo "1946"]
[BlackElo "2215"]
[Result "1-0"]
[Round "04"]
[TimeControl "180+2"]
[Date "2023.01.03"]
[WhiteClock "0:00:04"]
[BlackClock "0:00:02"]

1. e4 {[%clk 0:03:00]}  e5 {[%clk 0:02:59]} 2. Nf3 {[%clk 0:03:00]}  Nc6 {[%clk 0:02:59]} 3. Bb5 {[%clk 0:02:59]}  a6 {[%clk 0:03:00]} 4. Ba4 {[%clk 0:02:59]}  Nf6 {[%clk 0:03:00]} 5. O-O {[%clk 0:02:57]}  Be7 {[%clk 0:03:01]} 6. Re1 {[%clk 0:02:56]}  b5 {[%clk 0:03:02]} 7. Bb3 {[%clk 0:02:55]}  d6 {[%clk 0:03:02]} 8. h3 {[%clk 0:02:53]}  Na5 {[%clk 0:02:57]} 9. c3 {[%clk 0:02:51]}  Nxb3 {[%clk 0:02:56]} 10. axb3 {[%clk 0:02:52]}  O-O {[%clk 0:02:56]} 11. d4 {[%clk 0:02:52]}  Bb7 {[%clk 0:02:48]} 12. Nbd2 {[%clk 0:02:48]}  Nd7 {[%clk 0:02:40]} 13. b4 {[%clk 0:02:32]}  Re8 {[%clk 0:02:32]} 14. b3 {[%clk 0:02:28]}  exd4 {[%clk 0:02:26]} 15. cxd4 {[%clk 0:02:24]}  Bf6 {[%clk 0:02:26]} 16. Bb2 {[%clk 0:02:17]}  g6 {[%clk 0:02:01]} 17. e5 {[%clk 0:02:15]}  dxe5 {[%clk 0:01:55]} 18. dxe5 {[%clk 0:02:14]}  Bg7 {[%clk 0:01:53]} 19. Ne4 {[%clk 0:01:27]}  Qe7 {[%clk 0:01:20]} 20. Nf6+ {[%clk 0:01:07]}  Bxf6 {[%clk 0:01:04]} 21. exf6 {[%clk 0:01:04]}  Qd6 {[%clk 0:00:53]} 22. Qxd6 {[%clk 0:00:59]}  cxd6 {[%clk 0:00:53]} 23. Re7 {[%clk 0:00:39]}  Bxf3 {[%clk 0:00:48]} 24. gxf3 {[%clk 0:00:38]}  Rxe7 {[%clk 0:00:33]} 25. fxe7 {[%clk 0:00:37]}  f6 {[%clk 0:00:24]} 26. Rd1 {[%clk 0:00:30]}  Re8 {[%clk 0:00:21]} 27. Rxd6 {[%clk 0:00:29]}  Rxe7 {[%clk 0:00:20]} 28. Rxa6 {[%clk 0:00:28]}  Kf7 {[%clk 0:00:18]} 29. Ra5 {[%clk 0:00:25]}  Ne5 {[%clk 0:00:17]} 30. Rxb5 {[%clk 0:00:23]}  Nxf3+ {[%clk 0:00:16]} 31. Kg2 {[%clk 0:00:23]}  Ne1+ {[%clk 0:00:15]} 32. Kf1 {[%clk 0:00:20]}  Nd3 {[%clk 0:00:15]} 33. Bd4 {[%clk 0:00:15]}  Re4 {[%clk 0:00:13]} 34. Bc5 {[%clk 0:00:14]}  h5 {[%clk 0:00:10]} 35. Rb7+ {[%clk 0:00:13]}  Ke8 {[%clk 0:00:09]} 36. Rg7 {[%clk 0:00:12]}  g5 {[%clk 0:00:08]} 37. Rh7 {[%clk 0:00:11]}  h4 {[%clk 0:00:08]} 38. Rh8+ {[%clk 0:00:11]}  Kd7 {[%clk 0:00:07]} 39. Rf8 {[%clk 0:00:11]}  Re1+ {[%clk 0:00:04]} 40. Kg2 {[%clk 0:00:11]}  Nxc5 {[%clk 0:00:02]} 41. bxc5 {[%clk 0:00:09]}  Ke7 {[%clk 0:00:03]} 42. Rc8 {[%clk 0:00:07]}  Rb1 {[%clk 0:00:02]} 43. Rb8 {[%clk 0:00:06]}  Ke6 {[%clk 0:00:02]} 44. b4 {[%clk 0:00:05]}  Kd5 {[%clk 0:00:03]} 45. Rf8 {[%clk 0:00:04]}  Rxb4 {[%clk 0:00:02]} 46. Rxf6 {[%clk 0:00:04]} 1-0


[Site "https://www.chess.com"]

[Event "Titled Tuesday Blitz January 03 Early 2023"]
[White "Sreyas Payyappat"]
[Black "Matveeva, Olga"]
[WhiteFideId "46674969"]
[BlackFideId "24107018"]
[WhiteElo "2076"]
[BlackElo "2128"]
[Result "1-0"]
[Round "04"]
[TimeControl "180+2"]
[Date "2023.01.03"]
[WhiteClock "0:00:16"]
[BlackClock "0:00:08"]

1. e4 {[%clk 0:03:00]}  e6 {[%clk 0:03:00]} 2. d4 {[%clk 0:02:58]}  d5 {[%clk 0:03:00]} 3. Nc3 {[%clk 0:02:58]}  Nf6 {[%clk 0:03:00]} 4. Bg5 {[%clk 0:02:56]}  Bb4 {[%clk 0:02:59]} 5. e5 {[%clk 0:02:55]}  h6 {[%clk 0:02:59]} 6. Be3 {[%clk 0:02:51]}  Ne4 {[%clk 0:02:58]} 7. Qg4 {[%clk 0:02:43]}  g6 {[%clk 0:02:45]} 8. a3 {[%clk 0:02:41]}  Bxc3+ {[%clk 0:02:37]} 9. bxc3 {[%clk 0:02:40]}  c5 {[%clk 0:02:37]} 10. Nf3 {[%clk 0:02:28]}  Nc6 {[%clk 0:02:33]} 11. Bd3 {[%clk 0:02:26]}  cxd4 {[%clk 0:02:30]} 12. cxd4 {[%clk 0:02:25]}  Qa5+ {[%clk 0:02:28]} 13. Nd2 {[%clk 0:02:10]}  h5 {[%clk 0:01:52]} 14. Qh3 {[%clk 0:01:44]}  Qc3 {[%clk 0:01:27]} 15. Rd1 {[%clk 0:01:28]}  Nxd4 {[%clk 0:01:16]} 16. O-O {[%clk 0:01:13]}  Nxd2 {[%clk 0:00:38]} 17. Bxd2 {[%clk 0:01:12]}  Qc7 {[%clk 0:00:37]} 18. Bb4 {[%clk 0:01:03]}  Bd7 {[%clk 0:00:28]} 19. Bd6 {[%clk 0:00:39]}  Qa5 {[%clk 0:00:20]} 20. Kh1 {[%clk 0:00:13]}  O-O-O {[%clk 0:00:20]} 21. Bxg6 {[%clk 0:00:13]}  fxg6 {[%clk 0:00:16]} 22. Rxd4 {[%clk 0:00:13]}  g5 {[%clk 0:00:16]} 23. c4 {[%clk 0:00:13]}  g4 {[%clk 0:00:16]} 24. Qb3 {[%clk 0:00:12]}  Bc6 {[%clk 0:00:15]} 25. cxd5 {[%clk 0:00:12]}  Bxd5 {[%clk 0:00:15]} 26. Rc1+ {[%clk 0:00:12]}  Kd7 {[%clk 0:00:15]} 27. Rc7+ {[%clk 0:00:13]}  Qxc7 {[%clk 0:00:15]} 28. Bxc7 {[%clk 0:00:13]}  Kxc7 {[%clk 0:00:15]} 29. Qb4 {[%clk 0:00:13]}  Kb8 {[%clk 0:00:15]} 30. Kg1 {[%clk 0:00:11]}  Rc8 {[%clk 0:00:15]} 31. h3 {[%clk 0:00:11]}  gxh3 {[%clk 0:00:14]} 32. gxh3 {[%clk 0:00:12]}  Rhg8+ {[%clk 0:00:14]} 33. Kf1 {[%clk 0:00:12]}  Bf3 {[%clk 0:00:13]} 34. Ke1 {[%clk 0:00:10]}  Rc1+ {[%clk 0:00:12]} 35. Kd2 {[%clk 0:00:10]}  Rgc8 {[%clk 0:00:12]} 36. Ke3 {[%clk 0:00:11]}  R1c3+ {[%clk 0:00:11]} 37. Rd3 {[%clk 0:00:11]}  Rxd3+ {[%clk 0:00:09]} 38. Kxd3 {[%clk 0:00:12]}  Bd5 {[%clk 0:00:10]} 39. f4 {[%clk 0:00:12]}  Ka8 {[%clk 0:00:10]} 40. Qd6 {[%clk 0:00:11]}  a6 {[%clk 0:00:10]} 41. f5 {[%clk 0:00:11]}  Bc4+ {[%clk 0:00:10]} 42. Kd4 {[%clk 0:00:12]}  exf5 {[%clk 0:00:10]} 43. e6 {[%clk 0:00:12]}  Bb5 {[%clk 0:00:09]} 44. e7 {[%clk 0:00:12]}  Re8 {[%clk 0:00:09]} 45. Ke5 {[%clk 0:00:12]}  Ka7 {[%clk 0:00:09]} 46. Kxf5 {[%clk 0:00:12]}  Bc6 {[%clk 0:00:09]} 47. Kg5 {[%clk 0:00:12]}  Kb6 {[%clk 0:00:09]} 48. Kxh5 {[%clk 0:00:12]}  Rh8+ {[%clk 0:00:10]} 49. Kg5 {[%clk 0:00:13]}  Rxh3 {[%clk 0:00:10]} 50. Qd8+ {[%clk 0:00:13]}  Ka7 {[%clk 0:00:09]} 51. e8=Q {[%clk 0:00:13]}  Rg3+ {[%clk 0:00:09]} 52. Kf4 {[%clk 0:00:13]}  Bxe8 {[%clk 0:00:09]} 53. Kxg3 {[%clk 0:00:13]}  Bc6 {[%clk 0:00:08]} 54. Qd4+ {[%clk 0:00:14]}  Kb8 {[%clk 0:00:07]} 55. Kf4 {[%clk 0:00:15]}  Kc7 {[%clk 0:00:08]} 56. Ke5 {[%clk 0:00:16]} 1-0


[Site "https://www.chess.com"]

[Event "Titled Tuesday Blitz January 03 Early 2023"]
[White "Liu, Kelsey"]
[Black "Shubenkova, Veronika"]
[WhiteFideId "30944481"]
[BlackFideId "44124040"]
[WhiteElo "2065"]
[BlackElo "1960"]
[Result "0-1"]
[Round "04"]
[TimeControl "180+2"]
[Date "2023.01.03"]
[WhiteClock "0:00:05"]
[BlackClock "0:00:43"]

1. e4 {[%clk 0:02:56]}  c6 {[%clk 0:02:59]} 2. d4 {[%clk 0:02:55]}  d5 {[%clk 0:03:00]} 3. Nc3 {[%clk 0:02:56]}  dxe4 {[%clk 0:03:00]} 4. Nxe4 {[%clk 0:02:57]}  Bf5 {[%clk 0:03:01]} 5. Ng3 {[%clk 0:02:57]}  Bg6 {[%clk 0:03:01]} 6. h4 {[%clk 0:02:57]}  h6 {[%clk 0:03:01]} 7. Nf3 {[%clk 0:02:58]}  Nd7 {[%clk 0:03:02]} 8. h5 {[%clk 0:02:56]}  Bh7 {[%clk 0:03:02]} 9. Bd3 {[%clk 0:02:56]}  Bxd3 {[%clk 0:03:02]} 10. Qxd3 {[%clk 0:02:57]}  Ngf6 {[%clk 0:03:03]} 11. Bd2 {[%clk 0:02:56]}  e6 {[%clk 0:03:03]} 12. O-O-O {[%clk 0:02:54]}  Be7 {[%clk 0:03:03]} 13. Qe2 {[%clk 0:02:32]}  Qc7 {[%clk 0:03:00]} 14. Rhe1 {[%clk 0:02:29]}  O-O-O {[%clk 0:03:00]} 15. Kb1 {[%clk 0:02:14]}  c5 {[%clk 0:02:57]} 16. Nf5 {[%clk 0:02:08]}  Bf8 {[%clk 0:02:54]} 17. Ne5 {[%clk 0:02:07]}  Nxe5 {[%clk 0:02:47]} 18. dxe5 {[%clk 0:02:07]}  Nd5 {[%clk 0:02:35]} 19. Ng3 {[%clk 0:02:04]}  Be7 {[%clk 0:02:34]} 20. f4 {[%clk 0:02:02]}  c4 {[%clk 0:02:33]} 21. Ne4 {[%clk 0:02:01]}  Kb8 {[%clk 0:02:30]} 22. Nc3 {[%clk 0:01:51]}  Rd7 {[%clk 0:02:16]} 23. Nxd5 {[%clk 0:01:45]}  Rxd5 {[%clk 0:02:16]} 24. Bc3 {[%clk 0:01:45]}  Rhd8 {[%clk 0:02:15]} 25. Rxd5 {[%clk 0:01:45]}  Rxd5 {[%clk 0:02:14]} 26. Qg4 {[%clk 0:01:41]}  Qd7 {[%clk 0:02:05]} 27. Kc1 {[%clk 0:01:39]}  Bc5 {[%clk 0:02:02]} 28. a3 {[%clk 0:01:17]}  a6 {[%clk 0:01:59]} 29. Kb1 {[%clk 0:01:03]}  Bf8 {[%clk 0:01:57]} 30. Kc1 {[%clk 0:00:46]}  Ka7 {[%clk 0:01:25]} 31. f5 {[%clk 0:00:45]}  exf5 {[%clk 0:01:16]} 32. Qxc4 {[%clk 0:00:45]}  Be7 {[%clk 0:01:15]} 33. Qb3 {[%clk 0:00:17]}  Ka8 {[%clk 0:01:11]} 34. Kb1 {[%clk 0:00:17]}  Bh4 {[%clk 0:01:09]} 35. Rf1 {[%clk 0:00:15]}  Bg3 {[%clk 0:01:02]} 36. Ka2 {[%clk 0:00:14]}  Bxe5 {[%clk 0:01:00]} 37. Rxf5 {[%clk 0:00:13]}  Qxf5 {[%clk 0:00:59]} 38. Qxd5 {[%clk 0:00:13]}  f6 {[%clk 0:00:54]} 39. Qd8+ {[%clk 0:00:10]}  Bb8 {[%clk 0:00:54]} 40. Qe7 {[%clk 0:00:08]}  Qd5+ {[%clk 0:00:51]} 41. b3 {[%clk 0:00:07]}  Qxg2 {[%clk 0:00:51]} 42. Qf7 {[%clk 0:00:07]}  Qxc2+ {[%clk 0:00:50]} 43. Bb2 {[%clk 0:00:07]}  Qg2 {[%clk 0:00:49]} 44. Qe8 {[%clk 0:00:05]}  Qg4 {[%clk 0:00:49]} 45. a4 {[%clk 0:00:05]}  f5 {[%clk 0:00:49]} 46. Ka3 {[%clk 0:00:05]}  Qg3 {[%clk 0:00:44]} 47. Qf8 {[%clk 0:00:03]}  Qd6+ {[%clk 0:00:42]} 48. Qxd6 {[%clk 0:00:04]}  Bxd6+ {[%clk 0:00:43]} 49. Ka2 {[%clk 0:00:03]}  Bf8 {[%clk 0:00:43]} 50. Kb1 {[%clk 0:00:02]}  Kb8 {[%clk 0:00:43]} 51. Kc2 {[%clk 0:00:03]}  Kc7 {[%clk 0:00:43]} 52. Kd3 {[%clk 0:00:04]}  Kd6 {[%clk 0:00:44]} 53. Ke3 {[%clk 0:00:04]}  Ke6 {[%clk 0:00:44]} 54. Kf4 {[%clk 0:00:05]}  Bd6+ {[%clk 0:00:44]} 55. Kf3 {[%clk 0:00:05]}  Be5 {[%clk 0:00:45]} 56. Ba3 {[%clk 0:00:05]}  Kf6 {[%clk 0:00:43]} 57. Bf8 {[%clk 0:00:05]}  Kg5 {[%clk 0:00:43]} 0-1


[Site "https://www.chess.com"]

[Event "Titled Tuesday Blitz January 03 Early 2023"]
[White "Thiel, Thomas"]
[Black "Melikhov, Evgeny V."]
[WhiteFideId "4615964"]
[BlackFideId "4122046"]
[WhiteElo "2234"]
[BlackElo "2269"]
[Result "1-0"]
[Round "04"]
[TimeControl "180+2"]
[Date "2023.01.03"]
[WhiteClock "0:00:55"]
[BlackClock "0:00:20"]

1. e4 {[%clk 0:03:00]}  c5 {[%clk 0:02:58]} 2. Nc3 {[%clk 0:02:59]}  Nc6 {[%clk 0:02:58]} 3. Bb5 {[%clk 0:02:57]}  Nd4 {[%clk 0:02:57]} 4. Bc4 {[%clk 0:02:56]}  e6 {[%clk 0:02:57]} 5. Nge2 {[%clk 0:02:56]}  Nc6 {[%clk 0:02:55]} 6. O-O {[%clk 0:02:54]}  g6 {[%clk 0:02:53]} 7. d4 {[%clk 0:02:52]}  cxd4 {[%clk 0:02:53]} 8. Nxd4 {[%clk 0:02:53]}  Bg7 {[%clk 0:02:53]} 9. Ndb5 {[%clk 0:02:52]}  Nge7 {[%clk 0:02:44]} 10. Bf4 {[%clk 0:02:46]}  O-O {[%clk 0:02:36]} 11. Bc7 {[%clk 0:02:44]}  Qe8 {[%clk 0:02:16]} 12. Nd6 {[%clk 0:02:42]}  Ne5 {[%clk 0:02:04]} 13. Bb3 {[%clk 0:02:37]}  N7c6 {[%clk 0:01:58]} 14. Nxe8 {[%clk 0:02:36]}  Rxe8 {[%clk 0:01:58]} 15. Nb5 {[%clk 0:02:26]}  a6 {[%clk 0:01:39]} 16. Nd6 {[%clk 0:02:25]}  Rf8 {[%clk 0:01:39]} 17. c3 {[%clk 0:02:22]}  Ne7 {[%clk 0:01:27]} 18. f4 {[%clk 0:02:11]}  N5c6 {[%clk 0:01:27]} 19. e5 {[%clk 0:02:10]}  b5 {[%clk 0:01:22]} 20. Bc2 {[%clk 0:02:05]}  Nd5 {[%clk 0:01:17]} 21. Nxc8 {[%clk 0:02:00]}  Ne3 {[%clk 0:01:09]} 22. Qd2 {[%clk 0:01:57]}  Nxf1 {[%clk 0:01:07]} 23. Rxf1 {[%clk 0:01:44]}  Rfxc8 {[%clk 0:00:59]} 24. Qxd7 {[%clk 0:01:43]}  Ne7 {[%clk 0:00:47]} 25. Qxe7 {[%clk 0:01:39]}  Ra7 {[%clk 0:00:46]} 26. Qd6 {[%clk 0:01:24]}  Bf8 {[%clk 0:00:38]} 27. Qb6 {[%clk 0:01:14]}  Rcxc7 {[%clk 0:00:38]} 28. Qb8 {[%clk 0:01:13]}  Kg7 {[%clk 0:00:38]} 29. Rd1 {[%clk 0:01:09]}  Bc5+ {[%clk 0:00:34]} 30. Kf1 {[%clk 0:01:08]}  Be3 {[%clk 0:00:33]} 31. g3 {[%clk 0:01:04]}  Rab7 {[%clk 0:00:31]} 32. Qd8 {[%clk 0:00:59]}  Bb6 {[%clk 0:00:28]} 33. Qd6 {[%clk 0:00:56]}  a5 {[%clk 0:00:20]} 34. Be4 {[%clk 0:00:55]} 1-0


[Site "https://www.chess.com"]

[Event "Titled Tuesday Blitz January 03 Early 2023"]
[White "Nathan, Nitish"]
[Black "Larina, Maria"]
[WhiteFideId "30927870"]
[BlackFideId "24113182"]
[WhiteElo "2071"]
[BlackElo "1948"]
[Result "1-0"]
[Round "04"]
[TimeControl "180+2"]
[Date "2023.01.03"]
[WhiteClock "0:00:57"]
[BlackClock "0:00:07"]

1. d4 {[%clk 0:03:00]}  f5 {[%clk 0:02:58]} 2. Bf4 {[%clk 0:03:00]}  Nf6 {[%clk 0:02:58]} 3. e3 {[%clk 0:03:00]}  d6 {[%clk 0:02:57]} 4. Nf3 {[%clk 0:03:01]}  g6 {[%clk 0:02:58]} 5. Bc4 {[%clk 0:03:01]}  e6 {[%clk 0:02:57]} 6. O-O {[%clk 0:03:02]}  Bg7 {[%clk 0:02:58]} 7. Bb3 {[%clk 0:03:02]}  O-O {[%clk 0:02:57]} 8. c4 {[%clk 0:03:03]}  h6 {[%clk 0:02:47]} 9. h3 {[%clk 0:03:01]}  g5 {[%clk 0:02:47]} 10. Bh2 {[%clk 0:03:00]}  a5 {[%clk 0:02:44]} 11. Nc3 {[%clk 0:03:00]}  c6 {[%clk 0:02:35]} 12. c5 {[%clk 0:02:57]}  d5 {[%clk 0:02:25]} 13. Ne5 {[%clk 0:02:51]}  Qe8 {[%clk 0:02:19]} 14. Na4 {[%clk 0:02:50]}  Nbd7 {[%clk 0:02:16]} 15. Nxd7 {[%clk 0:02:45]}  Nxd7 {[%clk 0:02:17]} 16. Bd6 {[%clk 0:02:41]}  Rf7 {[%clk 0:02:15]} 17. Nc3 {[%clk 0:02:42]}  b6 {[%clk 0:01:55]} 18. cxb6 {[%clk 0:02:41]}  Nxb6 {[%clk 0:01:55]} 19. Bh2 {[%clk 0:02:39]}  Ba6 {[%clk 0:01:52]} 20. Re1 {[%clk 0:02:38]}  Bc4 {[%clk 0:01:50]} 21. Bc2 {[%clk 0:02:37]}  Qc8 {[%clk 0:01:40]} 22. f3 {[%clk 0:02:32]}  c5 {[%clk 0:01:39]} 23. Kh1 {[%clk 0:02:30]}  Ba6 {[%clk 0:01:32]} 24. Bg1 {[%clk 0:02:25]}  c4 {[%clk 0:01:32]} 25. e4 {[%clk 0:02:24]}  fxe4 {[%clk 0:01:31]} 26. fxe4 {[%clk 0:02:24]}  Qd7 {[%clk 0:01:19]} 27. e5 {[%clk 0:02:24]}  Nc8 {[%clk 0:01:08]} 28. g4 {[%clk 0:02:05]}  Ne7 {[%clk 0:01:00]} 29. Qe2 {[%clk 0:02:00]}  Raf8 {[%clk 0:00:59]} 30. Rf1 {[%clk 0:02:00]}  Qe8 {[%clk 0:00:53]} 31. Rae1 {[%clk 0:01:52]}  Rxf1 {[%clk 0:00:53]} 32. Rxf1 {[%clk 0:01:52]}  Rxf1 {[%clk 0:00:53]} 33. Qxf1 {[%clk 0:01:52]}  Qf7 {[%clk 0:00:52]} 34. Qe2 {[%clk 0:01:52]}  Qf4 {[%clk 0:00:49]} 35. Kg2 {[%clk 0:01:51]}  Bc8 {[%clk 0:00:44]} 36. Be3 {[%clk 0:01:49]}  Qf7 {[%clk 0:00:39]} 37. Bb1 {[%clk 0:01:48]}  Bd7 {[%clk 0:00:35]} 38. Qc2 {[%clk 0:01:47]}  Bf8 {[%clk 0:00:31]} 39. Ne2 {[%clk 0:01:43]}  Be8 {[%clk 0:00:29]} 40. Ng3 {[%clk 0:01:43]}  Ng6 {[%clk 0:00:25]} 41. Nh5 {[%clk 0:01:33]}  Nh4+ {[%clk 0:00:24]} 42. Kg1 {[%clk 0:01:33]}  Nf3+ {[%clk 0:00:23]} 43. Kh1 {[%clk 0:01:32]}  Nh4 {[%clk 0:00:17]} 44. Nf6+ {[%clk 0:01:31]}  Kh8 {[%clk 0:00:13]} 45. Bf2 {[%clk 0:01:20]}  Bb5 {[%clk 0:00:11]} 46. Bxh4 {[%clk 0:01:18]}  gxh4 {[%clk 0:00:11]} 47. Qf2 {[%clk 0:01:19]}  Be7 {[%clk 0:00:08]} 48. Qxh4 {[%clk 0:01:19]}  Qg7 {[%clk 0:00:07]} 49. Qh5 {[%clk 0:01:16]}  Bxf6 {[%clk 0:00:05]} 50. exf6 {[%clk 0:01:14]}  Qxf6 {[%clk 0:00:06]} 51. Kg2 {[%clk 0:01:13]}  Qg5 {[%clk 0:00:06]} 52. Qxg5 {[%clk 0:01:08]}  hxg5 {[%clk 0:00:07]} 53. Kg3 {[%clk 0:01:07]}  Kg7 {[%clk 0:00:07]} 54. h4 {[%clk 0:01:08]}  gxh4+ {[%clk 0:00:08]} 55. Kxh4 {[%clk 0:01:08]}  Be8 {[%clk 0:00:08]} 56. Kg5 {[%clk 0:01:08]}  a4 {[%clk 0:00:08]} 57. Kf4 {[%clk 0:01:05]}  Kf6 {[%clk 0:00:08]} 58. g5+ {[%clk 0:01:05]}  Kg7 {[%clk 0:00:08]} 59. Ke5 {[%clk 0:01:05]}  Bf7 {[%clk 0:00:09]} 60. a3 {[%clk 0:01:02]}  Kf8 {[%clk 0:00:08]} 61. Bc2 {[%clk 0:01:02]}  Ke7 {[%clk 0:00:08]} 62. Bxa4 {[%clk 0:01:01]}  Bg8 {[%clk 0:00:08]} 63. Bc2 {[%clk 0:01:01]}  Kd8 {[%clk 0:00:08]} 64. Kd6 {[%clk 0:01:00]}  Kc8 {[%clk 0:00:08]} 65. Bd1 {[%clk 0:00:58]}  Kd8 {[%clk 0:00:08]} 66. Bg4 {[%clk 0:00:57]}  Ke8 {[%clk 0:00:08]} 67. Bxe6 {[%clk 0:00:57]}  Bh7 {[%clk 0:00:07]} 68. Bxd5 {[%clk 0:00:57]} 1-0


[Site "https://www.chess.com"]